[Event "*** Titled Tuesday Blitz"]
[Site "Chess.com"]
[Date "2020.05.19"]
[Round "8"]
[White "kintoho"]
[Black "fridaywins"]
[Result "1-0"]
[WhiteElo "2425"]
[BlackElo "2247"]
[TimeControl "180+1"]
[EndTime "13:34:40 PDT"]
[Termination "kintoho won by resignation"]

1. d4 {[%clk 0:03:00.9]} 1... Nf6 {[%clk 0:02:57.4]} 2. Nf3 {[%clk 0:03:00.9]}
2... g6 {[%clk 0:02:44]} 3. Nc3 {[%clk 0:03:00.1]} 3... d5 {[%clk 0:02:42.4]} 4.
Bf4 {[%clk 0:02:59.3]} 4... Bg7 {[%clk 0:02:42.5]} 5. Nb5 {[%clk 0:02:58.5]}
5... Na6 {[%clk 0:02:41.5]} 6. e3 {[%clk 0:02:58.5]} 6... O-O {[%clk 0:02:40]}
7. h3 {[%clk 0:02:57.9]} 7... c6 {[%clk 0:02:40.3]} 8. Nc3 {[%clk 0:02:57.9]}
8... Nc7 {[%clk 0:02:40.5]} 9. Bd3 {[%clk 0:02:55.6]} 9... Bf5 {[%clk
0:02:27.3]} 10. Bxf5 {[%clk 0:02:54]} 10... gxf5 {[%clk 0:02:27]} 11. O-O {[%clk
0:02:54]} 11... Ne4 {[%clk 0:02:24.6]} 12. Ne2 {[%clk 0:02:50.7]} 12... Ne6
{[%clk 0:02:17.4]} 13. Be5 {[%clk 0:02:48.6]} 13... Bxe5 {[%clk 0:02:09.7]} 14.
Nxe5 {[%clk 0:02:48.1]} 14... f6 {[%clk 0:02:03.1]} 15. Nd3 {[%clk 0:02:46.6]}
15... Ng7 {[%clk 0:01:54.6]} 16. b3 {[%clk 0:02:38.1]} 16... Qd6 {[%clk
0:01:52.3]} 17. c4 {[%clk 0:02:36.8]} 17... e5 {[%clk 0:01:50.5]} 18. cxd5
{[%clk 0:02:36.4]} 18... cxd5 {[%clk 0:01:49.5]} 19. f3 {[%clk 0:02:32.2]} 19...
Ng5 {[%clk 0:01:42.8]} 20. f4 {[%clk 0:02:30]} 20... exf4 {[%clk 0:01:36.3]} 21.
Nexf4 {[%clk 0:02:29.7]} 21... Rae8 {[%clk 0:01:31.9]} 22. Qe2 {[%clk
0:02:20.8]} 22... Re4 {[%clk 0:01:16.3]} 23. Rae1 {[%clk 0:02:19.2]} 23... Rfe8
{[%clk 0:01:15.2]} 24. Qd2 {[%clk 0:02:19.1]} 24... N5e6 {[%clk 0:01:04.3]} 25.
Nf2 {[%clk 0:02:07.8]} 25... Nxf4 {[%clk 0:00:46.9]} 26. Nxe4 {[%clk 0:02:07.6]}
26... Rxe4 {[%clk 0:00:21.6]} 27. Rxf4 {[%clk 0:02:01.4]} 27... b6 {[%clk
0:00:21.2]} 28. Rxe4 {[%clk 0:01:59.1]} 28... fxe4 {[%clk 0:00:20.6]} 29. Qf2
{[%clk 0:01:56.6]} 29... f5 {[%clk 0:00:20.4]} 30. g3 {[%clk 0:01:55.6]} 30...
a5 {[%clk 0:00:19.6]} 31. Qf4 {[%clk 0:01:52.9]} 31... Qxf4 {[%clk 0:00:17]} 32.
gxf4 {[%clk 0:01:52.2]} 32... Ne6 {[%clk 0:00:17.9]} 33. Rc1 {[%clk 0:01:51.3]}
33... Kf7 {[%clk 0:00:17.9]} 34. Rc6 {[%clk 0:01:51.1]} 34... b5 {[%clk
0:00:16.4]} 35. Rb6 {[%clk 0:01:49.7]} 1-0

[Event "*** Titled Tuesday Blitz"]
[Site "Chess.com"]
[Date "2020.05.19"]
[Round "8"]
[White "talaicito"]
[Black "Andrii_Prydun"]
[Result "0-1"]
[WhiteElo "2174"]
[BlackElo "2384"]
[TimeControl "180+1"]
[EndTime "13:34:45 PDT"]
[Termination "Andrii_Prydun won on time"]

1. d4 {[%clk 0:03:00.9]} 1... c6 {[%clk 0:03:00.9]} 2. Nc3 {[%clk 0:02:54.5]}
2... d5 {[%clk 0:03:01.8]} 3. Bf4 {[%clk 0:02:54.1]} 3... Nf6 {[%clk 0:02:59.9]}
4. f3 {[%clk 0:02:53.2]} 4... g6 {[%clk 0:02:58.8]} 5. e4 {[%clk 0:02:51.4]}
5... dxe4 {[%clk 0:02:58.4]} 6. fxe4 {[%clk 0:02:51.4]} 6... Bg7 {[%clk
0:02:58.8]} 7. Nf3 {[%clk 0:02:49.5]} 7... O-O {[%clk 0:02:56.3]} 8. Qd2 {[%clk
0:02:44.6]} 8... Bg4 {[%clk 0:02:50.5]} 9. Be2 {[%clk 0:02:36.4]} 9... Nbd7
{[%clk 0:02:48.3]} 10. h3 {[%clk 0:02:27.3]} 10... Bxf3 {[%clk 0:02:48]} 11.
gxf3 {[%clk 0:02:24.6]} 11... e5 {[%clk 0:02:43.8]} 12. dxe5 {[%clk 0:02:13.8]}
12... Nh5 {[%clk 0:02:43.6]} 13. e6 {[%clk 0:01:37.3]} 13... Qh4+ {[%clk
0:02:38.1]} 14. Kd1 {[%clk 0:01:14.8]} 14... Nxf4 {[%clk 0:02:28.5]} 15. exd7
{[%clk 0:01:12.1]} 15... Rad8 {[%clk 0:02:28.8]} 16. Kc1 {[%clk 0:01:11]} 16...
Ne6 {[%clk 0:02:19.2]} 17. Kb1 {[%clk 0:01:03.7]} 17... Nd4 {[%clk 0:02:14.3]}
18. a4 {[%clk 0:00:47.4]} 18... Rxd7 {[%clk 0:02:13.9]} 19. Qd3 {[%clk
0:00:27.7]} 19... Rfd8 {[%clk 0:02:13]} 20. Ra3 {[%clk 0:00:25.2]} 20... Qf2
{[%clk 0:02:05]} 21. Rf1 {[%clk 0:00:21.9]} 21... Qg2 {[%clk 0:02:03.2]} 22. Qe3
{[%clk 0:00:18.1]} 22... Qxh3 {[%clk 0:01:51.6]} 23. a5 {[%clk 0:00:16.8]} 23...
Ne6 {[%clk 0:01:44.5]} 24. a6 {[%clk 0:00:12.3]} 24... b6 {[%clk 0:01:39.5]} 25.
Rb3 {[%clk 0:00:10.3]} 25... Bd4 {[%clk 0:01:38.5]} 26. Qc1 {[%clk 0:00:04.5]}
26... Qg2 {[%clk 0:01:35.1]} 27. f4 {[%clk 0:00:02.6]} 27... Bxc3 {[%clk
0:01:34.4]} 0-1

[Event "*** Titled Tuesday Blitz"]
[Site "Chess.com"]
[Date "2020.05.19"]
[Round "8"]
[White "BocharovD"]
[Black "Firouzja2003"]
[Result "0-1"]
[WhiteElo "2851"]
[BlackElo "3167"]
[TimeControl "180+1"]
[EndTime "13:34:50 PDT"]
[Termination "Firouzja2003 won by resignation"]

1. c4 {[%clk 0:03:00.9]} 1... Nf6 {[%clk 0:02:57.4]} 2. g3 {[%clk 0:02:54.3]}
2... g6 {[%clk 0:02:58.2]} 3. Bg2 {[%clk 0:02:54.3]} 3... Bg7 {[%clk 0:02:59.1]}
4. d4 {[%clk 0:02:54.7]} 4... O-O {[%clk 0:03:00]} 5. Nc3 {[%clk 0:02:54.5]}
5... d6 {[%clk 0:02:59.5]} 6. Nf3 {[%clk 0:02:54.4]} 6... Nbd7 {[%clk
0:02:59.6]} 7. O-O {[%clk 0:02:54.8]} 7... e5 {[%clk 0:03:00.5]} 8. e4 {[%clk
0:02:55.3]} 8... exd4 {[%clk 0:03:01.4]} 9. Nxd4 {[%clk 0:02:56]} 9... Re8
{[%clk 0:03:02.3]} 10. h3 {[%clk 0:02:56]} 10... a6 {[%clk 0:03:02.7]} 11. Be3
{[%clk 0:02:37.6]} 11... Rb8 {[%clk 0:03:03.2]} 12. a4 {[%clk 0:02:34.6]} 12...
Nc5 {[%clk 0:03:02]} 13. Qc2 {[%clk 0:02:33.8]} 13... a5 {[%clk 0:03:01.7]} 14.
Rad1 {[%clk 0:02:33.4]} 14... Bd7 {[%clk 0:03:00.9]} 15. Ndb5 {[%clk 0:02:29.8]}
15... Qc8 {[%clk 0:02:59.4]} 16. g4 {[%clk 0:02:17]} 16... Na6 {[%clk
0:02:57.9]} 17. f3 {[%clk 0:02:12.4]} 17... Nb4 {[%clk 0:02:54.8]} 18. Qd2
{[%clk 0:02:12.4]} 18... Be6 {[%clk 0:02:54.7]} 19. b3 {[%clk 0:02:11.8]} 19...
h5 {[%clk 0:02:45.9]} 20. Bd4 {[%clk 0:02:06.5]} 20... hxg4 {[%clk 0:02:42.5]}
21. hxg4 {[%clk 0:02:01.8]} 21... Nd7 {[%clk 0:02:42.5]} 22. Bxg7 {[%clk
0:01:59]} 22... Kxg7 {[%clk 0:02:43.4]} 23. g5 {[%clk 0:01:46.7]} 23... Nc6
{[%clk 0:02:30.4]} 24. f4 {[%clk 0:01:43.2]} 24... Nc5 {[%clk 0:02:28.9]} 25.
Nd5 {[%clk 0:01:28]} 25... Bxd5 {[%clk 0:02:26.1]} 26. cxd5 {[%clk 0:01:28.1]}
26... Nb4 {[%clk 0:02:25.9]} 27. e5 {[%clk 0:01:17.5]} 27... Qg4 {[%clk
0:02:08.9]} 28. Qc3 {[%clk 0:00:59]} 28... Ne4 {[%clk 0:02:04.7]} 29. Qb2 {[%clk
0:00:47.7]} 29... Ng3 {[%clk 0:01:58.9]} 30. exd6+ {[%clk 0:00:30.5]} 30... Kg8
{[%clk 0:01:57.8]} 31. dxc7 {[%clk 0:00:19.5]} 31... Ne2+ {[%clk 0:01:55.9]} 0-1

[Event "*** Titled Tuesday Blitz"]
[Site "Chess.com"]
[Date "2020.05.19"]
[Round "8"]
[White "luizwas"]
[Black "Klavdia_Nik"]
[Result "0-1"]
[WhiteElo "1812"]
[BlackElo "2041"]
[TimeControl "180+1"]
[EndTime "13:34:52 PDT"]
[Termination "Klavdia_Nik won on time"]

1. e4 {[%clk 0:03:00.9]} 1... e5 {[%clk 0:03:00]} 2. Nf3 {[%clk 0:03:00.6]} 2...
Nc6 {[%clk 0:02:58.8]} 3. Bc4 {[%clk 0:03:00.7]} 3... Be7 {[%clk 0:02:53.8]} 4.
c3 {[%clk 0:02:56.9]} 4... Nf6 {[%clk 0:02:51.4]} 5. d3 {[%clk 0:02:55.6]} 5...
O-O {[%clk 0:02:50.1]} 6. O-O {[%clk 0:02:55.5]} 6... d5 {[%clk 0:02:48.8]} 7.
exd5 {[%clk 0:02:50.4]} 7... Nxd5 {[%clk 0:02:48.9]} 8. Re1 {[%clk 0:02:49]}
8... Bf6 {[%clk 0:02:46]} 9. Nbd2 {[%clk 0:02:42]} 9... g6 {[%clk 0:02:33.1]}
10. Ne4 {[%clk 0:02:38.5]} 10... Bg7 {[%clk 0:02:33.4]} 11. Qb3 {[%clk
0:02:27.4]} 11... Na5 {[%clk 0:02:21.9]} 12. Qb5 {[%clk 0:02:24.8]} 12... Nxc4
{[%clk 0:02:20.6]} 13. Qxc4 {[%clk 0:02:22.8]} 13... c6 {[%clk 0:02:18.1]} 14.
Be3 {[%clk 0:01:56.4]} 14... h6 {[%clk 0:01:52.9]} 15. d4 {[%clk 0:01:40.5]}
15... Nxe3 {[%clk 0:01:48.4]} 16. Rxe3 {[%clk 0:01:35.6]} 16... exd4 {[%clk
0:01:47.8]} 17. Nxd4 {[%clk 0:01:35.1]} 17... Kh7 {[%clk 0:01:43.5]} 18. Rd1
{[%clk 0:01:33.2]} 18... Qa5 {[%clk 0:01:39.1]} 19. b4 {[%clk 0:01:19.6]} 19...
Qh5 {[%clk 0:01:17.4]} 0-1

[Event "*** Titled Tuesday Blitz"]
[Site "Chess.com"]
[Date "2020.05.19"]
[Round "8"]
[White "grandcoach"]
[Black "Majesth"]
[Result "0-1"]
[WhiteElo "2104"]
[BlackElo "2462"]
[TimeControl "180+1"]
[EndTime "13:34:54 PDT"]
[Termination "Majesth won by resignation"]

1. e4 {[%clk 0:03:00.9]} 1... e6 {[%clk 0:02:57.5]} 2. Nf3 {[%clk 0:02:59.5]}
2... d5 {[%clk 0:02:56.1]} 3. e5 {[%clk 0:02:59.9]} 3... c5 {[%clk 0:02:53.9]}
4. b4 {[%clk 0:03:00.3]} 4... d4 {[%clk 0:02:53.3]} 5. Bd3 {[%clk 0:02:55.8]}
5... cxb4 {[%clk 0:02:39.6]} 6. a3 {[%clk 0:02:54.7]} 6... Nc6 {[%clk
0:02:39.5]} 7. O-O {[%clk 0:02:51]} 7... Bc5 {[%clk 0:02:36]} 8. axb4 {[%clk
0:02:48.2]} 8... Nxb4 {[%clk 0:02:36.5]} 9. Be4 {[%clk 0:02:45.8]} 9... Ne7
{[%clk 0:02:33.3]} 10. Na3 {[%clk 0:02:32.6]} 10... h6 {[%clk 0:02:08.7]} 11.
Nc4 {[%clk 0:02:30.5]} 11... O-O {[%clk 0:02:04.3]} 12. Ba3 {[%clk 0:02:25.4]}
12... Rb8 {[%clk 0:01:48]} 13. Bxb4 {[%clk 0:02:18]} 13... Bxb4 {[%clk 0:01:46]}
14. Rxa7 {[%clk 0:02:18.4]} 14... b5 {[%clk 0:01:29.6]} 15. Nb2 {[%clk
0:02:04.4]} 15... Qb6 {[%clk 0:01:24.2]} 16. Qa1 {[%clk 0:02:00.9]} 16... Nc6
{[%clk 0:01:09.7]} 17. Bxc6 {[%clk 0:01:39.7]} 17... Qxc6 {[%clk 0:01:10.6]} 18.
Nxd4 {[%clk 0:01:35.6]} 18... Qe4 {[%clk 0:01:00.1]} 19. c3 {[%clk 0:01:33]}
19... Bc5 {[%clk 0:00:57.4]} 20. Re1 {[%clk 0:01:27.1]} 20... Qd5 {[%clk
0:00:50]} 21. Ra5 {[%clk 0:01:20.3]} 21... Bxd4 {[%clk 0:00:40.6]} 22. cxd4
{[%clk 0:01:18.8]} 22... Bb7 {[%clk 0:00:40.8]} 23. f3 {[%clk 0:01:16.4]} 23...
Qxd4+ {[%clk 0:00:40.7]} 24. Kh1 {[%clk 0:01:15.2]} 24... Qxd2 {[%clk
0:00:39.9]} 25. Qc1 {[%clk 0:00:56]} 25... Qxa5 {[%clk 0:00:37.6]} 0-1

[Event "*** Titled Tuesday Blitz"]
[Site "Chess.com"]
[Date "2020.05.19"]
[Round "8"]
[White "ZverevLev"]
[Black "LimeInTheCoconut"]
[Result "0-1"]
[WhiteElo "2189"]
[BlackElo "2509"]
[TimeControl "180+1"]
[EndTime "13:34:58 PDT"]
[Termination "LimeInTheCoconut won by resignation"]

1. e4 {[%clk 0:03:00.9]} 1... c6 {[%clk 0:02:59.9]} 2. d4 {[%clk 0:02:59.5]}
2... d5 {[%clk 0:03:00.4]} 3. e5 {[%clk 0:02:58.3]} 3... Bf5 {[%clk 0:03:00.3]}
4. Nf3 {[%clk 0:02:56.2]} 4... e6 {[%clk 0:03:00]} 5. Be2 {[%clk 0:02:54.3]}
5... c5 {[%clk 0:03:00.5]} 6. c4 {[%clk 0:02:43.5]} 6... dxc4 {[%clk 0:02:56.8]}
7. Bxc4 {[%clk 0:02:41.9]} 7... cxd4 {[%clk 0:02:41.4]} 8. Qxd4 {[%clk
0:02:39.9]} 8... Nc6 {[%clk 0:02:38.6]} 9. Qxd8+ {[%clk 0:02:38.6]} 9... Rxd8
{[%clk 0:02:39.5]} 10. O-O {[%clk 0:02:36.2]} 10... Nge7 {[%clk 0:02:29.7]} 11.
Nc3 {[%clk 0:02:34.6]} 11... a6 {[%clk 0:02:24.9]} 12. a4 {[%clk 0:02:30.3]}
12... Ng6 {[%clk 0:02:24.6]} 13. Bg5 {[%clk 0:02:28.1]} 13... Be7 {[%clk
0:02:22.3]} 14. Bxe7 {[%clk 0:02:27.6]} 14... Kxe7 {[%clk 0:02:23.2]} 15. Rfe1
{[%clk 0:02:25]} 15... Bg4 {[%clk 0:02:20.2]} 16. Be2 {[%clk 0:02:14.6]} 16...
Bxf3 {[%clk 0:02:14.8]} 17. Bxf3 {[%clk 0:02:15]} 17... Ngxe5 {[%clk 0:02:15.4]}
18. Bxc6 {[%clk 0:02:14.4]} 18... Nxc6 {[%clk 0:02:16.3]} 19. Rad1 {[%clk
0:02:12]} 19... Rxd1 {[%clk 0:02:15.8]} 20. Rxd1 {[%clk 0:02:10.8]} 20... Rd8
{[%clk 0:02:15.9]} 21. Rxd8 {[%clk 0:02:08.3]} 21... Nxd8 {[%clk 0:02:16.3]} 22.
Kf1 {[%clk 0:02:08.7]} 22... f5 {[%clk 0:02:15.1]} 23. f4 {[%clk 0:02:04.3]}
23... Kd6 {[%clk 0:02:11.5]} 24. Ke2 {[%clk 0:02:03.3]} 24... Nc6 {[%clk
0:02:10.2]} 25. Kd3 {[%clk 0:02:01.8]} 25... g6 {[%clk 0:02:06.7]} 26. g3 {[%clk
0:02:01]} 26... e5 {[%clk 0:02:05.3]} 27. fxe5+ {[%clk 0:01:58.2]} 27... Kxe5
{[%clk 0:02:06.2]} 28. Ke3 {[%clk 0:01:57.8]} 28... g5 {[%clk 0:01:59.3]} 29.
Ne2 {[%clk 0:01:56.3]} 29... Na5 {[%clk 0:01:55.4]} 30. Kd3 {[%clk 0:01:51.7]}
30... f4 {[%clk 0:01:49]} 31. gxf4+ {[%clk 0:01:50.2]} 31... gxf4 {[%clk
0:01:49.9]} 32. Ng1 {[%clk 0:01:49.9]} 32... Nc6 {[%clk 0:01:43.5]} 33. Nf3+
{[%clk 0:01:49.1]} 33... Kf5 {[%clk 0:01:43.9]} 34. Ke2 {[%clk 0:01:47.6]} 34...
Ne5 {[%clk 0:01:40.4]} 35. Nd4+ {[%clk 0:01:44.1]} 35... Ke4 {[%clk 0:01:40.3]}
36. Nb3 {[%clk 0:01:43.9]} 36... f3+ {[%clk 0:01:38.9]} 37. Kf1 {[%clk
0:01:42.3]} 37... b6 {[%clk 0:01:23]} 38. h3 {[%clk 0:01:37.7]} 38... a5 {[%clk
0:01:21.6]} 39. Nd2+ {[%clk 0:01:33.8]} 39... Kd3 {[%clk 0:01:18.5]} 40. Nb1
{[%clk 0:01:31.1]} 40... Kc2 {[%clk 0:01:15.1]} 41. Nc3 {[%clk 0:01:29.7]} 41...
Kxb2 {[%clk 0:01:14.3]} 42. Nd5 {[%clk 0:01:29.9]} 42... Nc4 {[%clk 0:01:05.6]}
43. Kf2 {[%clk 0:01:29.2]} 43... Kb3 {[%clk 0:01:05.4]} 44. Kxf3 {[%clk
0:01:29.1]} 44... Kxa4 {[%clk 0:01:05.8]} 45. Nf6 {[%clk 0:01:29.6]} 45... Kb3
{[%clk 0:01:02.5]} 0-1

[Event "*** Titled Tuesday Blitz"]
[Site "Chess.com"]
[Date "2020.05.19"]
[Round "8"]
[White "dretch"]
[Black "Eltaj_Safarli"]
[Result "0-1"]
[WhiteElo "2764"]
[BlackElo "3003"]
[TimeControl "180+1"]
[EndTime "13:35:04 PDT"]
[Termination "Eltaj_Safarli won on time"]

1. d4 {[%clk 0:03:00.9]} 1... Nf6 {[%clk 0:02:59.4]} 2. c4 {[%clk 0:03:01]} 2...
g6 {[%clk 0:02:59.3]} 3. Nc3 {[%clk 0:03:01.3]} 3... d5 {[%clk 0:02:58.8]} 4. e3
{[%clk 0:03:01]} 4... Bg7 {[%clk 0:02:58.6]} 5. Qb3 {[%clk 0:03:01.3]} 5... dxc4
{[%clk 0:02:58.3]} 6. Bxc4 {[%clk 0:03:01]} 6... O-O {[%clk 0:02:59.2]} 7. Nf3
{[%clk 0:03:01.3]} 7... c5 {[%clk 0:02:59.4]} 8. d5 {[%clk 0:02:57.6]} 8... Ne8
{[%clk 0:02:58.3]} 9. O-O {[%clk 0:02:53.7]} 9... Nd6 {[%clk 0:02:56.7]} 10. e4
{[%clk 0:02:50.2]} 10... a6 {[%clk 0:02:50.7]} 11. e5 {[%clk 0:02:46.1]} 11...
b5 {[%clk 0:02:45.2]} 12. exd6 {[%clk 0:02:45.6]} 12... bxc4 {[%clk 0:02:45.7]}
13. dxe7 {[%clk 0:02:45.4]} 13... cxb3 {[%clk 0:02:44.5]} 14. exd8=Q {[%clk
0:02:44.4]} 14... Rxd8 {[%clk 0:02:45.4]} 15. Bg5 {[%clk 0:02:20.9]} 15... f6
{[%clk 0:02:43.2]} 16. Be3 {[%clk 0:02:18.3]} 16... bxa2 {[%clk 0:02:43.5]} 17.
Bxc5 {[%clk 0:02:16.9]} 17... Nd7 {[%clk 0:02:43.2]} 18. Bd4 {[%clk 0:02:08.7]}
18... Rb8 {[%clk 0:02:40.1]} 19. Rxa2 {[%clk 0:01:54.2]} 19... Nb6 {[%clk
0:02:40]} 20. Rd1 {[%clk 0:01:54.4]} 20... Nxd5 {[%clk 0:02:31.9]} 21. Ba7
{[%clk 0:01:49.9]} 21... Rb7 {[%clk 0:02:29]} 22. Nxd5 {[%clk 0:01:47.5]} 22...
Rbd7 {[%clk 0:02:27.2]} 23. Ra5 {[%clk 0:00:15.1]} 23... Bb7 {[%clk 0:02:20]}
24. Bb6 {[%clk 0:00:09.1]} 24... Rxd5 {[%clk 0:02:18.1]} 25. Raxd5 {[%clk
0:00:07.9]} 25... Rxd5 {[%clk 0:02:19]} 26. Rxd5 {[%clk 0:00:07.8]} 26... Bxd5
{[%clk 0:02:19.9]} 27. Bd4 {[%clk 0:00:07.4]} 27... Bxf3 {[%clk 0:01:53.9]} 28.
gxf3 {[%clk 0:00:08.3]} 28... f5 {[%clk 0:01:54.5]} 29. Bxg7 {[%clk 0:00:08.3]}
29... Kxg7 {[%clk 0:01:55.4]} 30. Kf1 {[%clk 0:00:06.4]} 30... Kf6 {[%clk
0:01:55.7]} 31. f4 {[%clk 0:00:05]} 31... Ke6 {[%clk 0:01:55.9]} 32. Ke2 {[%clk
0:00:05.2]} 32... Kd5 {[%clk 0:01:56.2]} 33. Kd3 {[%clk 0:00:05.6]} 33... Kc5
{[%clk 0:01:48.6]} 34. Kc3 {[%clk 0:00:05]} 34... a5 {[%clk 0:01:49]} 35. f3
{[%clk 0:00:02.4]} 35... a4 {[%clk 0:01:45.9]} 36. Kd3 {[%clk 0:00:01.5]} 36...
Kb4 {[%clk 0:01:45.7]} 37. Kc2 {[%clk 0:00:01.2]} 37... Kc4 {[%clk 0:01:46.3]}
0-1

[Event "*** Titled Tuesday Blitz"]
[Site "Chess.com"]
[Date "2020.05.19"]
[Round "8"]
[White "PauloCesarCosta_sad"]
[Black "rekosheten"]
[Result "0-1"]
[WhiteElo "2200"]
[BlackElo "2352"]
[TimeControl "180+1"]
[EndTime "13:35:04 PDT"]
[Termination "rekosheten won on time"]

1. Nf3 {[%clk 0:03:00.9]} 1... Nf6 {[%clk 0:02:58.9]} 2. c4 {[%clk 0:03:00.5]}
2... e6 {[%clk 0:02:58.7]} 3. d4 {[%clk 0:03:00]} 3... d5 {[%clk 0:02:59]} 4.
Nc3 {[%clk 0:02:59.6]} 4... Bb4 {[%clk 0:02:59.6]} 5. Bg5 {[%clk 0:02:56.5]}
5... Nbd7 {[%clk 0:02:58.1]} 6. e3 {[%clk 0:02:56.1]} 6... c5 {[%clk 0:02:58.3]}
7. cxd5 {[%clk 0:02:55.6]} 7... exd5 {[%clk 0:02:58.4]} 8. Rc1 {[%clk 0:02:46]}
8... Qa5 {[%clk 0:02:55.2]} 9. Bxf6 {[%clk 0:02:44.8]} 9... Nxf6 {[%clk
0:02:54]} 10. Bb5+ {[%clk 0:02:43.7]} 10... Qxb5 {[%clk 0:02:52.7]} 11. dxc5
{[%clk 0:00:51.5]} 11... O-O {[%clk 0:02:32.4]} 12. a3 {[%clk 0:00:44.9]} 12...
Bxc3+ {[%clk 0:02:31.2]} 13. Rxc3 {[%clk 0:00:44.9]} 13... Qxb2 {[%clk
0:02:31.2]} 14. Rb3 {[%clk 0:00:40.3]} 14... Qa2 {[%clk 0:02:22.3]} 15. O-O
{[%clk 0:00:26.7]} 15... Ne4 {[%clk 0:02:18.9]} 16. Nd4 {[%clk 0:00:21.4]} 16...
Nxc5 {[%clk 0:02:14.6]} 17. Rc3 {[%clk 0:00:16.9]} 17... b6 {[%clk 0:02:04.1]}
18. Qh5 {[%clk 0:00:02.1]} 18... Be6 {[%clk 0:01:17.9]} 19. Nf3 {[%clk
0:00:01.7]} 19... Qb2 {[%clk 0:01:06.5]} 20. Ng5 {[%clk 0:00:01.3]} 20... h6
{[%clk 0:01:05.8]} 0-1

[Event "*** Titled Tuesday Blitz"]
[Site "Chess.com"]
[Date "2020.05.19"]
[Round "8"]
[White "ajian"]
[Black "FMOlexandrProhorov"]
[Result "1-0"]
[WhiteElo "2321"]
[BlackElo "2127"]
[TimeControl "180+1"]
[EndTime "13:35:04 PDT"]
[Termination "ajian won by resignation"]

1. d4 {[%clk 0:03:00.9]} 1... g6 {[%clk 0:02:19.2]} 2. c4 {[%clk 0:02:56.4]}
2... Bg7 {[%clk 0:02:19.2]} 3. Nf3 {[%clk 0:02:56.7]} 3... c5 {[%clk 0:02:19.1]}
4. d5 {[%clk 0:02:56.4]} 4... d6 {[%clk 0:02:16.8]} 5. e4 {[%clk 0:02:56.2]}
5... Nf6 {[%clk 0:02:15]} 6. Nc3 {[%clk 0:02:56.3]} 6... O-O {[%clk 0:02:15.1]}
7. h3 {[%clk 0:02:54.9]} 7... e6 {[%clk 0:02:15.2]} 8. Bd3 {[%clk 0:02:54.8]}
8... exd5 {[%clk 0:02:14.6]} 9. cxd5 {[%clk 0:02:55.7]} 9... Re8 {[%clk
0:02:14.8]} 10. O-O {[%clk 0:02:55.4]} 10... Nbd7 {[%clk 0:02:13.9]} 11. Bf4
{[%clk 0:02:54.5]} 11... Qe7 {[%clk 0:01:59.9]} 12. Nb5 {[%clk 0:02:37.5]} 12...
Ne5 {[%clk 0:01:59.1]} 13. Bxe5 {[%clk 0:02:26.1]} 13... dxe5 {[%clk 0:01:59.2]}
14. d6 {[%clk 0:02:26.7]} 14... Qd7 {[%clk 0:01:46]} 15. Nc7 {[%clk 0:02:26.5]}
15... Qxd6 {[%clk 0:01:41.6]} 16. Nxa8 {[%clk 0:02:21.8]} 16... Qb8 {[%clk
0:01:41.6]} 17. Bc4 {[%clk 0:02:06.5]} 17... h6 {[%clk 0:01:32.6]} 18. Nh4
{[%clk 0:01:49.8]} 18... Kh7 {[%clk 0:01:31.4]} 19. Bxf7 {[%clk 0:01:48.8]}
19... Re7 {[%clk 0:01:23.5]} 20. Bxg6+ {[%clk 0:01:47.2]} 20... Kg8 {[%clk
0:01:21]} 21. Qd8+ {[%clk 0:01:43.9]} 21... Bf8 {[%clk 0:01:21.2]} 22. Nf5
{[%clk 0:01:33.9]} 22... Re6 {[%clk 0:01:20.6]} 23. Nxh6+ {[%clk 0:01:24.2]}
23... Kg7 {[%clk 0:01:20.4]} 24. Bf5 {[%clk 0:01:18.3]} 24... Be7 {[%clk
0:01:11.2]} 25. Qc7 {[%clk 0:00:59.9]} 25... Qxc7 {[%clk 0:00:49.9]} 26. Nxc7
{[%clk 0:00:59.8]} 26... Rc6 {[%clk 0:00:50.8]} 27. Bxc8 {[%clk 0:00:56.7]}
27... Kxh6 {[%clk 0:00:46.7]} 28. Nd5 {[%clk 0:00:46.2]} 28... Nxd5 {[%clk
0:00:42.5]} 29. Bxb7 {[%clk 0:00:46.2]} 29... Rc8 {[%clk 0:00:43.3]} 30. Bxc8
{[%clk 0:00:45.8]} 1-0

[Event "*** Titled Tuesday Blitz"]
[Site "Chess.com"]
[Date "2020.05.19"]
[Round "8"]
[White "Zmof"]
[Black "OhanyanEminChess"]
[Result "0-1"]
[WhiteElo "2232"]
[BlackElo "2418"]
[TimeControl "180+1"]
[EndTime "13:35:06 PDT"]
[Termination "OhanyanEminChess won by resignation"]

1. e4 {[%clk 0:03:00.9]} 1... e5 {[%clk 0:02:58.9]} 2. Bc4 {[%clk 0:02:59.1]}
2... Nf6 {[%clk 0:02:58.3]} 3. d3 {[%clk 0:02:58.6]} 3... c6 {[%clk 0:02:58]} 4.
Nf3 {[%clk 0:02:58.3]} 4... d5 {[%clk 0:02:57]} 5. Bb3 {[%clk 0:02:58.6]} 5...
Bd6 {[%clk 0:02:53.8]} 6. exd5 {[%clk 0:02:57.5]} 6... cxd5 {[%clk 0:02:53.5]}
7. Bg5 {[%clk 0:02:56.6]} 7... Be6 {[%clk 0:02:52.1]} 8. Nc3 {[%clk 0:02:54.5]}
8... Qa5 {[%clk 0:02:41.7]} 9. O-O {[%clk 0:02:49.7]} 9... Nbd7 {[%clk 0:02:39]}
10. Re1 {[%clk 0:02:43.3]} 10... O-O-O {[%clk 0:02:17.5]} 11. Qd2 {[%clk
0:02:11.3]} 11... Kb8 {[%clk 0:01:42.2]} 12. Bxf6 {[%clk 0:01:50.9]} 12... Nxf6
{[%clk 0:01:34]} 13. Ng5 {[%clk 0:01:45.1]} 13... Bb4 {[%clk 0:01:17.6]} 14.
Nxe6 {[%clk 0:01:43.8]} 14... fxe6 {[%clk 0:01:17.3]} 15. a3 {[%clk 0:01:41.8]}
15... Bxc3 {[%clk 0:01:15.7]} 16. Qxc3 {[%clk 0:01:38.2]} 16... Qxc3 {[%clk
0:01:15]} 17. bxc3 {[%clk 0:01:38.7]} 17... e4 {[%clk 0:01:15.6]} 18. f3 {[%clk
0:01:29.1]} 18... exf3 {[%clk 0:01:13.5]} 19. gxf3 {[%clk 0:01:29.8]} 19... Rhe8
{[%clk 0:01:12.1]} 20. Re5 {[%clk 0:01:26]} 20... Kc7 {[%clk 0:01:11.9]} 21.
Rae1 {[%clk 0:01:24.8]} 21... Kd6 {[%clk 0:01:11.8]} 22. d4 {[%clk 0:01:19.1]}
22... Rc8 {[%clk 0:01:09.9]} 23. R1e3 {[%clk 0:01:16.6]} 23... Nd7 {[%clk
0:01:07.9]} 24. Rg5 {[%clk 0:01:15.8]} 24... g6 {[%clk 0:01:07.4]} 25. h4 {[%clk
0:01:14.9]} 25... Nb6 {[%clk 0:01:06.6]} 26. h5 {[%clk 0:01:14.2]} 26... Rg8
{[%clk 0:01:07]} 27. hxg6 {[%clk 0:01:11.9]} 27... Rxg6 {[%clk 0:01:07.9]} 28.
Rxg6 {[%clk 0:01:11.9]} 28... hxg6 {[%clk 0:01:08.8]} 29. Kf2 {[%clk 0:01:12.2]}
29... Nc4 {[%clk 0:01:09.2]} 30. Re1 {[%clk 0:01:00.8]} 30... Nxa3 {[%clk
0:01:08.2]} 31. Rg1 {[%clk 0:00:59.9]} 31... Rxc3 {[%clk 0:01:07.4]} 32. Rxg6
{[%clk 0:00:58.7]} 32... Nxc2 {[%clk 0:01:07.9]} 33. Bxc2 {[%clk 0:00:48.8]}
33... Rxc2+ {[%clk 0:01:08.8]} 34. Ke3 {[%clk 0:00:49.3]} 34... Rc3+ {[%clk
0:01:04.8]} 35. Kf4 {[%clk 0:00:49]} 35... Rd3 {[%clk 0:01:04]} 36. Rg7 {[%clk
0:00:48.2]} 36... Rxd4+ {[%clk 0:01:03.9]} 37. Ke3 {[%clk 0:00:48.7]} 37... Rb4
{[%clk 0:01:03.9]} 38. f4 {[%clk 0:00:49.2]} 38... a5 {[%clk 0:01:01.9]} 0-1